fUST/lending_fUST_20260523
["ID","MTS","AMOUNT","RATE_DAILY","PERIOD"]
[422819920,1779465631000,200.0,0.00016651,120]
[422819921,1779465655000,-165.565678,5.478e-05,2]
[422819922,1779465673000,-447.58742583,5.587e-05,2]
[422819923,1779465691000,-177.0,5.697e-05,2]
[422819924,1779465709000,-1277.56621783,5.945e-05,2]
[422819925,1779465726000,-135.43378217,5.945e-05,2]
[422819927,1779465744000,-649.976,5.945e-05,2]
[422819928,1779465762000,-804.59021783,5.956e-05,2]
[422819929,1779465780000,-649.976,5.599e-05,2]
[422819930,1779465797000,-300.0,5.598e-05,2]
[422820010,1779466233000,-543.11802766,5.598e-05,2]
[422820014,1779466233000,-335.43958643,5.598e-05,2]
[422820004,1779466233000,-438.63567732,5.597e-05,2]
[422820008,1779466233000,-500.0,5.598e-05,2]
[422820016,1779466233000,-500.0,5.598e-05,2]
[422820002,1779466233000,-300.0,5.597e-05,2]
[422820020,1779466233000,-288.757079,5.598e-05,2]
[422820012,1779466233000,-500.0,5.598e-05,2]
[422820018,1779466233000,-500.0,5.598e-05,2]
[422820006,1779466233000,-500.0,5.598e-05,2]
[422820025,1779466233000,-500.0,5.598e-05,2]
[422820021,1779466233000,-304.90629989,5.598e-05,2]
[422820040,1779466233000,-11650.04914763,5.599e-05,2]
[422820032,1779466233000,-500.0,5.598e-05,2]
[422820028,1779466233000,-500.0,5.598e-05,2]
[422820035,1779466233000,-500.0,5.598e-05,2]
[422820023,1779466233000,-500.0,5.598e-05,2]
[422820034,1779466233000,-500.0,5.598e-05,2]
[422820037,1779466233000,-500.0,5.598e-05,2]
[422820030,1779466233000,-500.0,5.598e-05,2]
[422820082,1779466238000,-575.33398132,5.998e-05,2]
[422820066,1779466238000,-185.0,5.981e-05,2]
[422820072,1779466238000,-547.93712507,5.998e-05,2]
[422820073,1779466238000,-547.93712507,5.998e-05,2]
[422820069,1779466238000,-547.93712507,5.998e-05,2]
[422820067,1779466238000,-584.81766596,5.998e-05,2]
[422820068,1779466238000,-547.93712507,5.998e-05,2]
[422820061,1779466238000,-6638.80820064,5.824e-05,2]
[422820064,1779466238000,-454.075,5.981e-05,2]
[422820065,1779466238000,-742.0,5.981e-05,2]
[422820063,1779466238000,-1398.40978217,5.956e-05,2]
[422820062,1779466238000,-166.496439,5.888e-05,2]
[422820060,1779466238000,-1625.53410256,5.824e-05,2]
[422820071,1779466238000,-547.93712507,5.998e-05,2]
[422820070,1779466238000,-547.93712507,5.998e-05,2]
[422820083,1779466238000,-575.33398132,5.998e-05,2]
[422820085,1779466238000,-575.33398132,5.998e-05,2]
[422820075,1779466238000,-547.93712507,5.998e-05,2]
[422820093,1779466238000,-97977.76558614,5.999e-05,2]
[422820091,1779466238000,-581.08732114,5.998e-05,2]
[422820092,1779466238000,-581.08732114,5.998e-05,2]
[422820074,1779466238000,-547.93712507,5.998e-05,2]
[422820089,1779466238000,-575.33398132,5.998e-05,2]
[422820088,1779466238000,-575.33398132,5.998e-05,2]
[422820086,1779466238000,-575.33398132,5.998e-05,2]
[422820087,1779466238000,-575.33398132,5.998e-05,2]
[422820090,1779466238000,-575.33398132,5.998e-05,2]
[422820081,1779466238000,-547.93712507,5.998e-05,2]
[422820077,1779466238000,-547.93712507,5.998e-05,2]
[422820078,1779466238000,-547.93712507,5.998e-05,2]
[422820079,1779466238000,-547.93712507,5.998e-05,2]
[422820080,1779466238000,-547.93712507,5.998e-05,2]
[422820084,1779466238000,-575.33398132,5.998e-05,2]
[422820076,1779466238000,-547.93712507,5.998e-05,2]
[422820108,1779466240000,-17779.9466972,5.999e-05,2]
[422820107,1779466240000,-32906.93211002,5.999e-05,2]
[422820109,1779466240000,-38678.47018479,5.999e-05,2]
[422820136,1779466246000,-4043.17442128,5.999e-05,2]
[422820134,1779466246000,-389.87844398,5.998e-05,2]
[422820135,1779466246000,-12809.10546238,5.999e-05,2]
[422820150,1779466693000,10050.0,0.000178,120]
[422820151,1779466715000,312.2140749,5e-05,2]
[422820212,1779467431000,-365.41745322,5.598e-05,2]
[422820208,1779467431000,-165.565678,5.146e-05,2]
[422820209,1779467431000,-429.86296377,5.353e-05,2]
[422820214,1779467431000,-367.2118111,5.598e-05,2]
[422820216,1779467431000,-300.0,5.598e-05,2]
[422820218,1779467431000,-4275.62977868,5.599e-05,2]
[422820220,1779467431000,-1131.5,5.599e-05,2]
[422820222,1779467431000,-2875.36108167,5.599e-05,2]
[422820395,1779467440000,-304.0,5.599e-05,2]
[422820425,1779467443000,-1807.23285433,5.599e-05,2]
[422820424,1779467443000,-1541.35527737,5.599e-05,2]
[422820437,1779467446000,-500.0,5.599e-05,2]
[422820436,1779467446000,-9844.29095858,5.599e-05,2]
[422820438,1779467474000,-300.0,5.598e-05,2]
[422820641,1779468638000,-520.35825222,5.698e-05,2]
[422820629,1779468638000,-520.35825222,5.698e-05,2]
[422820630,1779468638000,-520.35825222,5.698e-05,2]
[422820623,1779468638000,-520.35825222,5.698e-05,2]
[422820627,1779468638000,-520.35825222,5.698e-05,2]
[422820626,1779468638000,-520.35825222,5.698e-05,2]
[422820617,1779468638000,-421.26570449,5.4e-05,2]
[422820618,1779468638000,-300.0,5.598e-05,2]
[422820628,1779468638000,-520.35825222,5.698e-05,2]
[422820625,1779468638000,-520.35825222,5.698e-05,2]
[422820619,1779468638000,-9844.29095858,5.599e-05,2]
[422820640,1779468638000,-520.35825222,5.698e-05,2]
[422820616,1779468638000,-176.137945,5.202e-05,2]
[422820621,1779468638000,-520.35825222,5.698e-05,2]
[422820622,1779468638000,-520.35825222,5.698e-05,2]
[422820624,1779468638000,-520.35825222,5.698e-05,2]
[422820632,1779468638000,-520.35825222,5.698e-05,2]
[422820620,1779468638000,-155.89852902,5.599e-05,2]
[422820637,1779468638000,-520.35825222,5.698e-05,2]
[422820650,1779468638000,-546.37616483,5.698e-05,2]
[422820653,1779468638000,-135454.95598515,5.699e-05,2]
[422820651,1779468638000,-191.02028855,5.698e-05,2]
[422820652,1779468638000,-355.35587628,5.698e-05,2]
[422820648,1779468638000,-546.37616483,5.698e-05,2]
[422820631,1779468638000,-520.35825222,5.698e-05,2]
[422820646,1779468638000,-546.37616483,5.698e-05,2]
[422820647,1779468638000,-546.37616483,5.698e-05,2]
[422820649,1779468638000,-546.37616483,5.698e-05,2]
[422820644,1779468638000,-546.37616483,5.698e-05,2]
[422820639,1779468638000,-130.3218054,5.698e-05,2]
[422820638,1779468638000,-390.03644682,5.698e-05,2]
[422820636,1779468638000,-520.35825222,5.698e-05,2]
[422820643,1779468638000,-546.37616483,5.698e-05,2]
[422820634,1779468638000,-520.35825222,5.698e-05,2]
[422820642,1779468638000,-520.35825222,5.698e-05,2]
[422820645,1779468638000,-546.37616483,5.698e-05,2]
[422820674,1779468646000,-6741.06576806,5.699e-05,2]
[422820681,1779468647000,-1016.1462603,5.699e-05,2]
[422820682,1779468988000,193.99094668,0.00012289,120]
[422820684,1779469389000,166.180296,3.126e-05,2]
[422820683,1779469389000,166.180296,2.521e-05,2]
[422820685,1779469390000,166.180296,3.731e-05,2]
[422820687,1779469390000,166.180296,4.942e-05,2]
[422820686,1779469390000,166.180296,4.337e-05,2]
[422820717,1779469832000,-481.10629354,5.8e-05,2]
[422820713,1779469832000,-265.21678421,5.8e-05,2]
[422820708,1779469832000,-161.22126827,5.8e-05,2]
[422820700,1779469832000,-225.65851717,5.8e-05,2]
[422820706,1779469832000,-154.3780394,5.8e-05,2]
[422820704,1779469832000,-244.88627751,5.8e-05,2]
[422820711,1779469832000,-155.15839754,5.8e-05,2]
[422820709,1779469832000,-152.01233243,5.8e-05,2]
[422820715,1779469832000,-441.61978183,5.8e-05,2]
[422820702,1779469832000,-235.84354239,5.8e-05,2]
[422820698,1779469832000,-179.641547,5.8e-05,2]
[422820696,1779469832000,-185.0,5.765e-05,2]
[422820695,1779469832000,-742.0,5.765e-05,2]
[422820693,1779469832000,-423.31867064,5.765e-05,2]
[422820692,1779469832000,-2255.4813972,5.681e-05,2]
[422820690,1779469832000,-151.0,5.145e-05,2]
[422820691,1779469832000,-432.58235446,5.64e-05,2]
[422820697,1779469832000,-300.0,5.799e-05,2]
[422820719,1779469832000,-518.06563762,5.8e-05,2]
[422820694,1779469832000,-19.68132936,5.765e-05,2]
[422820733,1779469832000,-774.66386095,5.883e-05,2]
[422820730,1779469832000,-1428.33613905,5.883e-05,2]
[422820748,1779469832000,-151.0,5.946e-05,2]
[422820746,1779469832000,-325.9380359,5.946e-05,2]
[422820750,1779469832000,-456.643312,5.946e-05,2]
[422820754,1779469832000,-281.6919342,5.967e-05,2]
[422820758,1779469832000,-259.91896265,5.998e-05,2]
[422820752,1779469832000,-151.0,5.967e-05,2]
[422820760,1779469832000,-36951.1369282,5.999e-05,2]
[422820756,1779469832000,-430.5161154,5.967e-05,2]
[422820744,1779469832000,-325.4009188,5.946e-05,2]
[422820739,1779469832000,-151.0,5.946e-05,2]
[422820721,1779469832000,-152.0,5.863e-05,2]
[422820726,1779469832000,-1413.0,5.883e-05,2]
[422820724,1779469832000,-200.0,5.876e-05,7]
[422820723,1779469832000,-200.0,5.876e-05,2]
[422820736,1779469832000,-23999.61363764,5.899e-05,2]
[422820738,1779469832000,-7652.0328487,5.925e-05,2]
[422820728,1779469832000,-647.0,5.883e-05,2]
[422820742,1779469832000,-325.9848009,5.946e-05,2]
[422820815,1779469838000,-2235.72069157,5.999e-05,2]
[422820813,1779469838000,-173.27930843,5.998e-05,2]
[422820830,1779469838000,-2014.11663286,5.999e-05,2]
[422820829,1779469838000,-738794.8425521,5.999e-05,2]
[422820904,1779469841000,-8308.49737407,5.999e-05,2]
[422821242,1779469843000,-1179.71245703,5.999e-05,2]
[422821239,1779469843000,-173.27930843,5.998e-05,2]
[422821603,1779469846000,-288.6080418,5.999e-05,2]
[422821658,1779469847000,-7872.12443032,5.999e-05,2]
[422821650,1779469847000,-22305.8034694,5.999e-05,2]
[422821755,1779470268000,160.1654377,4.767e-05,2]
[422821924,1779471038000,-252.0,5.697e-05,2]
[422821922,1779471038000,-165.5656797,5.319e-05,2]
[422821923,1779471038000,-423.93070738,5.447e-05,2]
[422821926,1779471038000,-500.0,5.698e-05,2]
[422821927,1779471038000,-500.0,5.698e-05,2]
[422821928,1779471038000,-500.0,5.698e-05,2]
[422821925,1779471038000,-303.0,5.697e-05,2]
[422821953,1779471039000,-500.0,5.698e-05,2]
[422821952,1779471039000,-500.0,5.698e-05,2]
[422821954,1779471039000,-500.0,5.698e-05,2]
[422821947,1779471039000,-500.0,5.698e-05,2]
[422821946,1779471039000,-500.0,5.698e-05,2]
[422821944,1779471039000,-500.0,5.698e-05,2]
[422821948,1779471039000,-500.0,5.698e-05,2]
[422821945,1779471039000,-500.0,5.698e-05,2]
[422821955,1779471039000,-440.0,5.698e-05,2]
[422821942,1779471039000,-500.0,5.698e-05,2]
[422821939,1779471039000,-500.0,5.698e-05,2]
[422821936,1779471039000,-500.0,5.698e-05,2]
[422821940,1779471039000,-500.0,5.698e-05,2]
[422821937,1779471039000,-500.0,5.698e-05,2]
[422821938,1779471039000,-500.0,5.698e-05,2]
[422821943,1779471039000,-500.0,5.698e-05,2]
[422821933,1779471039000,-500.0,5.698e-05,2]
[422821935,1779471039000,-500.0,5.698e-05,2]
[422821934,1779471039000,-500.0,5.698e-05,2]
[422821932,1779471039000,-500.0,5.698e-05,2]
[422821930,1779471039000,-500.0,5.698e-05,2]
[422821931,1779471039000,-451.95830359,5.698e-05,2]
[422821951,1779471039000,-500.0,5.698e-05,2]
[422821941,1779471039000,-500.0,5.698e-05,2]
[422821950,1779471039000,-500.0,5.698e-05,2]
[422821929,1779471039000,-500.0,5.698e-05,2]
[422821956,1779471039000,-3292.98136818,5.699e-05,2]
[422821980,1779471039000,-741.7629303,5.992e-05,2]
[422821977,1779471039000,-281.1764378,5.956e-05,2]
[422821979,1779471039000,-2088.3715974,5.992e-05,2]
[422821975,1779471039000,-325.9848009,5.946e-05,2]
[422821981,1779471039000,-1515282.33473216,5.999e-05,2]
[422821974,1779471039000,-325.9848009,5.946e-05,2]
[422821978,1779471039000,-195.5464232,5.99e-05,2]
[422821976,1779471039000,-152.0,5.95e-05,2]
[422821973,1779471039000,-325.9848009,5.946e-05,2]
[422821972,1779471039000,-152.0,5.942e-05,2]
[422821949,1779471039000,-500.0,5.698e-05,2]
[422821965,1779471039000,-647.0,5.87e-05,2]
[422821971,1779471039000,-152.0,5.875e-05,7]
[422821962,1779471039000,-153.95237176,5.8e-05,2]
[422821958,1779471039000,-150.2929011,5.8e-05,2]
[422821959,1779471039000,-150.7498154,5.8e-05,2]
[422821964,1779471039000,-1429.162,5.87e-05,2]
[422821966,1779471039000,-1002.319,5.87e-05,2]
[422821969,1779471039000,-443.0,5.87e-05,2]
[422821968,1779471039000,-185.0,5.87e-05,2]
[422821957,1779471039000,-122539.80839911,5.699e-05,2]
[422821970,1779471039000,-152.0,5.875e-05,7]
[422821960,1779471039000,-150.8505497,5.8e-05,2]
[422821961,1779471039000,-150.93828911,5.8e-05,2]
[422821967,1779471039000,-734.0,5.87e-05,2]
[422821963,1779471039000,-575.036399,5.8e-05,2]
[422821990,1779471041000,-592.12445735,5.999e-05,2]
[422821988,1779471041000,-411.33538393,5.999e-05,2]
[422821989,1779471041000,-3626.15856042,5.999e-05,2]
[422821987,1779471041000,-575.036399,5.85e-05,2]
[422822002,1779471044000,-575.036399,5.9e-05,2]
[422822004,1779471044000,-2229.23520279,5.999e-05,2]
[422822005,1779471044000,-112243.48760933,5.999e-05,2]
[422822003,1779471044000,-423.963601,5.999e-05,2]
[422822015,1779471073000,-152.0,5.875e-05,7]
[422822048,1779471922000,165.848715,2.344e-05,2]
[422822107,1779472231000,-300.0,5.497e-05,2]
[422822103,1779472231000,-673.65860255,5.496e-05,2]
[422822106,1779472231000,-526.34139745,5.496e-05,2]
[422822109,1779472231000,-300.0,5.497e-05,2]
[422822116,1779472231000,-425.29718999,5.497e-05,2]
[422822114,1779472231000,-300.0,5.497e-05,2]
[422822117,1779472231000,-500.0,5.498e-05,2]
[422822119,1779472231000,-388.53511422,5.498e-05,2]
[422822121,1779472231000,-500.0,5.498e-05,2]
[422822123,1779472231000,-46211.51925557,5.499e-05,2]
[422822125,1779472231000,-2071.504045,5.499e-05,2]
[422822111,1779472231000,-300.0,5.497e-05,2]
[422822403,1779472240000,-152.0,5.984e-05,2]
[422822407,1779472240000,-500.0,5.998e-05,2]
[422822406,1779472240000,-500.0,5.998e-05,2]
[422822405,1779472240000,-500.0,5.998e-05,2]
[422822404,1779472240000,-500.0,5.998e-05,2]
[422822409,1779472240000,-500.0,5.998e-05,2]
[422822399,1779472240000,-152.0,5.877e-05,7]
[422822401,1779472240000,-155.17,5.881e-05,2]
[422822398,1779472240000,-29335.82824772,5.499e-05,2]
[422822400,1779472240000,-185.0,5.881e-05,2]
[422822397,1779472240000,-648.18145955,5.499e-05,2]
[422822396,1779472240000,-500.0,5.499e-05,2]
[422822402,1779472240000,-150.0,5.881e-05,2]
[422822419,1779472240000,-500.0,5.998e-05,2]
[422822415,1779472240000,-500.0,5.998e-05,2]
[422822408,1779472240000,-500.0,5.998e-05,2]
[422822427,1779472240000,-75.16072154,5.998e-05,2]
[422822426,1779472240000,-500.0,5.998e-05,2]
[422822425,1779472240000,-500.0,5.998e-05,2]
[422822423,1779472240000,-500.0,5.998e-05,2]
[422822417,1779472240000,-500.0,5.998e-05,2]
[422822411,1779472240000,-605.72009645,5.998e-05,2]
[422822424,1779472240000,-500.0,5.998e-05,2]
[422822414,1779472240000,-500.0,5.998e-05,2]
[422822413,1779472240000,-500.0,5.998e-05,2]
[422822422,1779472240000,-500.0,5.998e-05,2]
[422822421,1779472240000,-500.0,5.998e-05,2]
[422822416,1779472240000,-500.0,5.998e-05,2]
[422822412,1779472240000,-500.0,5.998e-05,2]
[422822410,1779472240000,-500.0,5.998e-05,2]
[422822432,1779472243000,-500.0,5.998e-05,2]
[422822434,1779472243000,-315.87035925,5.999e-05,2]
[422822433,1779472243000,-450.0,5.998e-05,2]
[422822430,1779472243000,-424.83927846,5.998e-05,2]
[422822431,1779472243000,-300.0,5.998e-05,2]
[422822444,1779472246000,-954.01,5.999e-05,2]
[422822442,1779472246000,-7708.0501673,5.999e-05,2]
[422822451,1779472392000,150.0,6.8e-05,30]
[422822461,1779472808000,14.54698072,6.811e-05,30]
[422822460,1779472808000,137.45301928,6.811e-05,30]
[422822463,1779472832000,152.0,6.811e-05,30]
[422822465,1779472833000,165.316005,4.42e-05,2]
[422822464,1779472833000,165.316005,2.21e-05,2]
[422822483,1779472997000,152.0,6.803e-05,30]
[422822485,1779473016000,152.0,6.803e-05,30]
[422822493,1779473411000,324.5531,4.31e-05,2]
[422822514,1779473432000,-500.0,5.298e-05,2]
[422822513,1779473432000,-375.79841667,5.298e-05,2]
[422822512,1779473432000,-500.0,5.298e-05,2]
[422822508,1779473432000,-80.77341694,5.298e-05,2]
[422822510,1779473432000,-500.0,5.298e-05,2]
[422822509,1779473432000,-500.0,5.298e-05,2]
[422822519,1779473432000,-255.82,5.298e-05,2]
[422822518,1779473432000,-500.0,5.298e-05,2]
[422822511,1779473432000,-500.0,5.298e-05,2]
[422822504,1779473432000,-53.39030086,5.297e-05,2]
[422822503,1779473432000,-300.0,5.297e-05,2]
[422822505,1779473432000,-246.60969914,5.297e-05,2]
[422822502,1779473432000,-300.0,5.297e-05,2]
[422822506,1779473432000,-500.0,5.298e-05,2]
[422822498,1779473432000,-200.0,5.037e-05,2]
[422822501,1779473432000,-1200.0,5.296e-05,2]
[422822499,1779473432000,-230.67,5.037e-05,7]
[422822517,1779473432000,-500.0,5.298e-05,2]
[422822507,1779473432000,-419.22658306,5.298e-05,2]
[422822515,1779473432000,-500.0,5.298e-05,2]
[422822500,1779473432000,-416.79124619,5.037e-05,2]
[422822521,1779473432000,-500.0,5.298e-05,2]
[422822539,1779473432000,-9817.1442976,5.299e-05,2]
[422822536,1779473432000,-500.0,5.298e-05,2]
[422822535,1779473432000,-500.0,5.298e-05,2]
[422822537,1779473432000,-500.0,5.298e-05,2]
[422822534,1779473432000,-500.0,5.298e-05,2]
[422822529,1779473432000,-500.0,5.298e-05,2]
[422822526,1779473432000,-500.0,5.298e-05,2]
[422822527,1779473432000,-500.0,5.298e-05,2]
[422822538,1779473432000,-300.0,5.298e-05,2]
[422822530,1779473432000,-500.0,5.298e-05,2]
[422822531,1779473432000,-500.0,5.298e-05,2]
[422822522,1779473432000,-500.0,5.298e-05,2]
[422822532,1779473432000,-500.0,5.298e-05,2]
[422822524,1779473432000,-500.0,5.298e-05,2]
[422822525,1779473432000,-500.0,5.298e-05,2]
[422822523,1779473432000,-500.0,5.298e-05,2]
[422822520,1779473432000,-238.8642423,5.298e-05,2]
[422822533,1779473432000,-446.77075,5.298e-05,2]
[422822528,1779473432000,-592.0463052,5.298e-05,2]
[422822516,1779473432000,-500.0,5.298e-05,2]
[422822706,1779473438000,-3077.71104754,5.299e-05,2]
[422822707,1779473438000,-1120.58885405,5.299e-05,2]
[422822720,1779473440000,-32835.93519453,5.299e-05,2]
[422822737,1779473443000,-2277.32852476,5.299e-05,2]
[422822753,1779473446000,-420.0,5.827e-05,2]
[422822749,1779473446000,-195.5464232,5.604e-05,2]
[422822751,1779473446000,-185.0,5.75e-05,2]
[422822752,1779473446000,-443.0,5.75e-05,2]
[422822750,1779473446000,-250.0,5.726e-05,2]
[422822748,1779473446000,-237.9444453,5.479e-05,2]
[422822747,1779473446000,-230.0145596,5.479e-05,2]
[422822746,1779473446000,-81062.56829414,5.299e-05,2]
[422822754,1779473447000,-152.0,5.874e-05,7]
[422822755,1779473447000,-152.0,5.876e-05,7]
[422822759,1779473447000,-150.0,5.881e-05,2]
[422822758,1779473447000,-150.0,5.881e-05,2]
[422822760,1779473447000,-41058.16291808,5.999e-05,2]
[422822756,1779473447000,-150.0,5.881e-05,2]
[422822764,1779474367000,-454.67181169,5.098e-05,2]
[422822765,1779474367000,-245.32818831,5.098e-05,2]
[422822763,1779474367000,-300.0,5.097e-05,2]
[422822766,1779474369000,-254.67181169,5.098e-05,2]
[422822767,1779474369000,-500.0,5.098e-05,2]
[422822768,1779474369000,-245.32818831,5.098e-05,2]
[422822771,1779474375000,-245.32818831,5.098e-05,2]
[422822769,1779474375000,-254.67181169,5.098e-05,2]
[422822770,1779474375000,-500.0,5.098e-05,2]
[422822775,1779474381000,-245.32818831,5.098e-05,2]
[422822774,1779474381000,-500.0,5.098e-05,2]
[422822773,1779474381000,-254.67181169,5.098e-05,2]
[422822778,1779474385000,-245.32818831,5.098e-05,2]
[422822777,1779474385000,-500.0,5.098e-05,2]
[422822776,1779474385000,-254.67181169,5.098e-05,2]
[422822779,1779474389000,-254.67181169,5.098e-05,2]
[422822780,1779474389000,-500.0,5.098e-05,2]
[422822781,1779474389000,-245.32818831,5.098e-05,2]
[422822785,1779474418000,4207.36880064,5.001e-05,2]
[422822793,1779474580000,330657.82360414,4.999e-05,2]
[422822878,1779474632000,-150.0,5.999e-05,2]
[422822864,1779474632000,-151402.45215061,5.999e-05,2]
[422822876,1779474632000,-150.0,5.999e-05,2]
[422822862,1779474632000,-443.0,5.908e-05,2]
[422822874,1779474632000,-150.0,5.999e-05,2]
[422822860,1779474632000,-185.0,5.908e-05,2]
[422822868,1779474632000,-150.0,5.999e-05,2]
[422822870,1779474632000,-150.0,5.999e-05,2]
[422822872,1779474632000,-150.0,5.999e-05,2]
[422822866,1779474632000,-173.27930845,5.999e-05,2]
[422822858,1779474632000,-152.0,5.876e-05,7]
[422822856,1779474632000,-151.0,5.849e-05,2]
[422822834,1779474632000,-418.70499654,5.097e-05,2]
[422822852,1779474632000,-201.9932974,5.839e-05,2]
[422822850,1779474632000,-151.0,5.835e-05,2]
[422822841,1779474632000,-420.0,5.607e-05,2]
[422822839,1779474632000,-169.369556,5.279e-05,2]
[422822832,1779474632000,-1200.0,5.097e-05,2]
[422822836,1779474632000,-756.47102253,5.099e-05,2]
[422822883,1779474632000,-19827.21319747,6e-05,2]
[422822838,1779474632000,-920.0582384,5.099e-05,2]
[422822830,1779474632000,-300.0,5.097e-05,2]
[422822828,1779474632000,-300.0,5.097e-05,2]
[422822826,1779474632000,-300.0,5.097e-05,2]
[422822824,1779474632000,-300.0,5.097e-05,2]
[422822854,1779474632000,-151.0,5.849e-05,2]
[422822881,1779474632000,-15303.83,6e-05,2]
[422822921,1779474632000,-300.0,6.248e-05,2]
[422822885,1779474632000,-152.0,6.002e-05,2]
[422822887,1779474632000,-189.25425429,6.097e-05,2]
[422822943,1779474632000,-29.46214509,6.661e-05,2]
[422822939,1779474632000,-794.0,6.5e-05,2]
[422822937,1779474632000,-151.0,6.5e-05,2]
[422822941,1779474632000,-325.9970619,6.661e-05,2]
[422822933,1779474632000,-151.0,6.5e-05,2]
[422822935,1779474632000,-151.0,6.5e-05,2]
[422822931,1779474632000,-600.0,6.451e-05,2]
[422822925,1779474632000,-300.0,6.248e-05,2]
[422822923,1779474632000,-300.0,6.248e-05,2]
[422822927,1779474632000,-300.0,6.248e-05,2]
[422822913,1779474632000,-300.0,6.248e-05,2]
[422822915,1779474632000,-300.0,6.248e-05,2]
[422822929,1779474632000,-500.0,6.361e-05,2]
[422822917,1779474632000,-300.0,6.248e-05,2]
[422822889,1779474632000,-587.0,6.167e-05,2]
[422822891,1779474632000,-300.0,6.248e-05,2]
[422822895,1779474632000,-33.07436279,6.248e-05,2]
[422822899,1779474632000,-57.78828677,6.248e-05,2]
[422822902,1779474632000,-242.21171323,6.248e-05,2]
[422822897,1779474632000,-266.92563721,6.248e-05,2]
[422822893,1779474632000,-300.0,6.248e-05,2]
[422822906,1779474632000,-66.03520699,6.248e-05,2]
[422822909,1779474632000,-233.96479301,6.248e-05,2]
[422822919,1779474632000,-300.0,6.248e-05,2]
[422822911,1779474632000,-300.0,6.248e-05,2]
[422822904,1779474632000,-300.0,6.248e-05,2]
[422822990,1779474641000,-5109.0,7.17e-05,2]
[422822986,1779474641000,-2609.47010353,7.086e-05,3]
[422822985,1779474641000,-250.0,7e-05,2]
[422822993,1779474641000,-14816.40833885,7.265e-05,21]
[422822991,1779474641000,-198.0,7.17e-05,2]
[422822992,1779474641000,-1712.25519872,7.263e-05,21]
[422823002,1779474641000,-188.14221,7.671e-05,2]
[422823003,1779474641000,-188.14221,7.671e-05,2]
[422823004,1779474641000,-188.14221,7.671e-05,2]
[422822995,1779474641000,-652.12660391,7.5e-05,2]
[422822996,1779474641000,-170.3706409,7.5e-05,2]
[422822994,1779474641000,-234.1032,7.398e-05,21]
[422822981,1779474641000,-706.098,6.703e-05,2]
[422822975,1779474641000,-500.0,5.998e-05,2]
[422822984,1779474641000,-585.258,6.977e-05,21]
[422822978,1779474641000,-500.0,5.998e-05,2]
[422822983,1779474641000,-594.66193532,6.8e-05,2]
[422822982,1779474641000,-250.0,6.735e-05,2]
[422822980,1779474641000,-327.93822541,6.661e-05,2]
[422822987,1779474641000,-720.0,7.096e-05,2]
[422822988,1779474641000,-494.07189592,7.097e-05,2]
[422822979,1779474641000,-533.21426536,5.998e-05,2]
[422822976,1779474641000,-500.0,5.998e-05,2]
[422822977,1779474641000,-500.0,5.998e-05,2]
[422822973,1779474641000,-500.0,5.998e-05,2]
[422822974,1779474641000,-500.0,5.998e-05,2]
[422823000,1779474641000,-59787.7937057,7.6e-05,2]
[422822989,1779474641000,-162.0,7.17e-05,2]
[422822997,1779474641000,-220.82209486,7.5e-05,2]
[422823023,1779474641000,-500.0,7.671e-05,2]
[422823001,1779474641000,-151.0,7.6e-05,2]
[422822999,1779474641000,-266.16878288,7.5e-05,2]
[422823032,1779474641000,-151.0,7.671e-05,2]
[422823031,1779474641000,-151.0,7.671e-05,2]
[422823029,1779474641000,-151.0,7.671e-05,2]
[422823028,1779474641000,-151.0,7.671e-05,2]
[422823030,1779474641000,-151.0,7.671e-05,2]
[422823027,1779474641000,-151.0,7.671e-05,2]
[422823025,1779474641000,-500.0,7.671e-05,2]
[422823026,1779474641000,-151.0,7.671e-05,2]
[422823024,1779474641000,-500.0,7.671e-05,2]
[422823019,1779474641000,-500.0,7.671e-05,2]
[422823021,1779474641000,-500.0,7.671e-05,2]
[422823020,1779474641000,-500.0,7.671e-05,2]
[422823018,1779474641000,-500.0,7.671e-05,2]
[422823022,1779474641000,-500.0,7.671e-05,2]
[422823009,1779474641000,-188.14221,7.671e-05,2]
[422823014,1779474641000,-500.0,7.671e-05,2]
[422823016,1779474641000,-500.0,7.671e-05,2]
[422823017,1779474641000,-500.0,7.671e-05,2]
[422823005,1779474641000,-188.14221,7.671e-05,2]
[422823006,1779474641000,-188.14221,7.671e-05,2]
[422823007,1779474641000,-188.14221,7.671e-05,2]
[422823008,1779474641000,-188.14221,7.671e-05,2]
[422823013,1779474641000,-188.14221,7.671e-05,2]